[Event "HSG Open 2022 A"]
[Site "Hilversum, Netherlands"]
[Date "2022.06.17"]
[Round "1.1"]
[White "Kanis, Sierk"]
[Black "Beerdsen, Thomas"]
[Result "0-1"]
[TimeControl "1:50 + 0.10"]
[WhiteElo "2026"]
[BlackElo "2494"]

1. d4 {[%clk 01:50:17]} {[%emt 00:00:02]} Nf6 {[%clk 01:50:04]} {[%emt
00:00:16]} 2. Bf4 {[%clk 01:50:21]} {[%emt 00:00:06]} c6 {[%clk 01:50:05]}
{[%emt 00:00:08]} 3. c4 {[%clk 01:48:33]} {[%emt 00:01:59]} Qb6 {[%clk
01:49:15]} {[%emt 00:01:00]} 4. Qd2 {[%clk 01:41:33]} {[%emt 00:07:10]} Ne4
{[%clk 01:43:18]} {[%emt 00:08:20]} 5. Qc2 {[%clk 01:40:30]} d5 {[%clk
01:40:58]} {[%emt 00:01:30]} 6. e3 {[%clk 01:38:43]} {[%emt 00:03:47]} Bf5
{[%clk 01:35:22]} {[%emt 00:03:55]} 7. Bd3 {[%clk 01:36:42]} {[%emt 00:02:11]}
Nd7 {[%clk 01:25:59]} {[%emt 00:09:32]} 8. Ne2 {[%clk 01:26:15]} {[%emt
00:10:38]} g5 {[%clk 00:54:45]} {[%emt 00:31:24]} 9. Bxg5 {[%clk 01:16:06]}
{[%emt 00:10:20]} Rg8 {[%clk 00:52:17]} {[%emt 00:02:37]} 10. Bh4 {[%clk
01:14:09]} {[%emt 00:02:07]} Rxg2 {[%clk 00:48:22]} 11. Nbc3 {[%clk 01:07:31]}
{[%emt 00:10:53]} Nxc3 {[%clk 00:35:18]} {[%emt 00:13:13]} 12. bxc3 {[%clk
01:02:31]} {[%emt 00:05:10]} Bxd3 {[%clk 00:34:55]} {[%emt 00:00:34]} 13. Qxd3
{[%clk 01:02:32]} {[%emt 00:00:09]} Rg7 {[%clk 00:30:37]} {[%emt 00:04:27]} 14.
cxd5 {[%clk 00:58:53]} {[%emt 00:03:50]} cxd5 {[%clk 00:28:20]} {[%emt
00:02:27]} 15. Nf4 {[%clk 00:48:48]} {[%emt 00:10:15]} Qc6 {[%clk 00:27:34]}
{[%emt 00:00:54]} 16. Rb1 {[%clk 00:46:27]} {[%emt 00:02:32]} e6 {[%clk
00:23:40]} {[%emt 00:04:04]} 17. Ke2 {[%clk 00:44:18]} {[%emt 00:02:20]} Bd6
{[%clk 00:21:48]} {[%emt 00:02:02]} 18. Nh5 {[%clk 00:42:59]} {[%emt 00:01:28]}
Rg6 {[%clk 00:20:32]} {[%emt 00:01:26]} 19. Rhg1 {[%clk 00:37:23]} {[%emt
00:05:47]} Kf8 {[%clk 00:13:15]} {[%emt 00:07:26]} 20. Bg3 {[%clk 00:31:11]}
{[%emt 00:06:23]} Rc8 {[%clk 00:12:04]} {[%emt 00:01:20]} 21. Bxd6+ {[%clk
00:26:34]} {[%emt 00:04:48]} Qxd6 {[%clk 00:12:08]} {[%emt 00:00:06]} 22. Nf4
{[%clk 00:24:10]} {[%emt 00:02:34]} Rxg1 {[%clk 00:11:56]} {[%emt 00:00:22]} 23.
Rxg1 {[%clk 00:24:09]} {[%emt 00:00:12]} Nf6 {[%clk 00:11:53]} {[%emt
00:00:12]} 24. Qb5 {[%clk 00:16:41]} {[%emt 00:07:38]} Rc7 {[%clk 00:09:20]}
{[%emt 00:02:43]} 25. Qb3 {[%clk 00:12:14]} {[%emt 00:04:37]} Ne4 {[%clk
00:08:11]} {[%emt 00:01:19]} 26. Rc1 {[%clk 00:12:17]} {[%emt 00:00:08]} Qa6+
{[%clk 00:07:10]} {[%emt 00:01:10]} 27. Ke1 {[%clk 00:09:46]} {[%emt 00:02:41]}
Qa5 {[%clk 00:05:44]} {[%emt 00:01:36]} 28. Ne2 {[%clk 00:09:37]} {[%emt
00:00:20]} Qa6 {[%clk 00:04:42]} {[%emt 00:01:12]} 29. f3 {[%clk 00:08:09]}
{[%emt 00:01:38]} Nd6 {[%clk 00:03:56]} {[%emt 00:00:55]} 30. Nf4 {[%clk
00:07:09]} {[%emt 00:01:11]} Rc6 {[%clk 00:03:32]} {[%emt 00:00:34]} 31. Qb1
{[%clk 00:05:45]} {[%emt 00:01:33]} Qa3 {[%clk 00:03:27]} {[%emt 00:00:15]} 32.
Ne2 {[%clk 00:05:34]} {[%emt 00:00:21]} h5 {[%clk 00:02:32]} {[%emt 00:01:05]}
33. Kf2 {[%clk 00:05:21]} {[%emt 00:00:23]} Rb6 {[%clk 00:02:21]} {[%emt
00:00:22]} 34. Qh7 {[%clk 00:04:43]} {[%emt 00:00:48]} Rb2 {[%clk 00:02:26]}
{[%emt 00:00:04]} 35. Rc2 {[%clk 00:04:29]} {[%emt 00:00:25]} Qxa2 {[%clk
00:02:07]} {[%emt 00:00:29]} 36. Rxb2 {[%clk 00:04:23]} {[%emt 00:00:16]} Qxb2
{[%clk 00:02:14]} {[%emt 00:00:02]} 37. Qxh5 {[%clk 00:04:28]} {[%emt
00:00:05]} a5 {[%clk 00:01:50]} {[%emt 00:00:34]} 38. h4 {[%clk 00:04:05]}
{[%emt 00:00:34]} a4 {[%clk 00:01:47]} {[%emt 00:00:13]} 39. Qg5 {[%clk
00:01:50]} {[%emt 00:02:25]} a3 {[%clk 00:01:32]} {[%emt 00:00:24]} 40. h5
{[%clk 00:01:59]} {[%emt 00:00:02]} a2 {[%clk 00:01:22]} {[%emt 00:00:19]} 41.
h6 {[%clk 00:02:05]} {[%emt 00:00:04]} Qb1 {[%clk 00:00:52]} {[%emt 00:00:40]}
42. Qg7+ {[%clk 00:01:10]} {[%emt 00:01:06]} Ke7 {[%clk 00:00:59]} {[%emt
00:00:02]} 43. h7 {[%clk 00:01:11]} {[%emt 00:00:09]} a1=Q {[%clk 00:01:05]}
{[%emt 00:00:04]} 44. h8=Q {[%clk 00:00:56]} {[%emt 00:00:25]} Qe1+ {[%clk
00:01:12]} {[%emt 00:00:02]} 45. Kg2 {[%clk 00:01:00]} {[%emt 00:00:07]} Qxe2+
{[%clk 00:01:19]} {[%emt 00:00:02]} 46. Kh3 {[%clk 00:00:34]} {[%emt 00:00:36]}
Qh1+ {[%clk 00:01:26]} {[%emt 00:00:03]} 47. Kg4 {[%clk 00:00:27]} {[%emt
00:00:18]} Qexf3+ {[%clk 00:01:34]} {[%emt 00:00:03]} 48. Kg5 {[%clk 00:00:32]}
{[%emt 00:00:05]} Ne4# {[%clk 00:01:41]} {[%emt 00:00:02]} 0-1

[Event "HSG Open 2022 A"]
[Site "Hilversum, Netherlands"]
[Date "2022.06.17"]
[Round "1.2"]
[White "Pijpers, Arthur"]
[Black "Noordhoff, Enno"]
[Result "1-0"]
[TimeControl "1:50 + 0.10"]
[WhiteElo "2455"]
[BlackElo "2026"]

1. e4 {[%clk 01:50:17]} {[%emt 00:00:02]} c5 {[%clk 01:47:08]} {[%emt
00:03:12]} 2. Nf3 {[%clk 01:50:22]} {[%emt 00:00:05]} a6 {[%clk 01:46:59]}
{[%emt 00:00:19]} 3. Nc3 {[%clk 01:50:06]} {[%emt 00:00:27]} Nc6 {[%clk
01:41:40]} {[%emt 00:05:29]} 4. d4 {[%clk 01:48:16]} {[%emt 00:02:00]} cxd4
{[%clk 01:41:02]} {[%emt 00:00:48]} 5. Nxd4 {[%clk 01:48:21]} {[%emt 00:00:05]}
e5 {[%clk 01:40:44]} {[%emt 00:06:24]} 6. Nf5 {[%clk 01:45:44]} d6 {[%clk
01:37:40]} {[%emt 00:00:05]} 7. Bc4 {[%clk 01:30:11]} {[%emt 00:15:43]} g6
{[%clk 01:27:07]} {[%emt 00:10:43]} 8. Ne3 {[%clk 01:30:10]} {[%emt 00:00:12]}
Nf6 {[%clk 01:26:48]} {[%emt 00:00:29]} 9. Ned5 {[%clk 01:28:15]} {[%emt
00:02:05]} Nxd5 {[%clk 01:25:48]} {[%emt 00:01:09]} 10. Nxd5 {[%clk 01:28:03]}
{[%emt 00:00:23]} b5 {[%clk 01:20:15]} {[%emt 00:05:43]} 11. Bb3 {[%clk
01:26:31]} {[%emt 00:01:42]} Bg7 {[%clk 01:19:29]} {[%emt 00:00:56]} 12. c3
{[%clk 01:16:59]} {[%emt 00:09:42]} O-O {[%clk 01:10:24]} {[%emt 00:09:15]} 13.
h4 {[%clk 01:17:04]} {[%emt 00:00:05]} h6 {[%clk 00:46:47]} {[%emt 00:23:47]}
14. Be3 {[%clk 01:15:28]} {[%emt 00:01:47]} Be6 {[%clk 00:40:09]} {[%emt
00:06:48]} 15. a4 {[%clk 01:01:55]} {[%emt 00:13:43]} Rb8 {[%clk 00:33:57]}
{[%emt 00:06:22]} 16. axb5 {[%clk 01:01:04]} {[%emt 00:01:01]} axb5 {[%clk
00:33:56]} {[%emt 00:00:11]} 17. h5 {[%clk 00:51:59]} {[%emt 00:09:15]} g5
{[%clk 00:30:46]} {[%emt 00:03:20]} 18. Ra6 {[%clk 00:52:01]} {[%emt 00:00:08]}
Na5 {[%emt 00:01:49]} 19. Ba2 {[%clk 00:52:05]} {[%emt 00:00:04]} Bc8 {[%clk
00:27:14]} {[%emt 00:02:05]} 20. Bb6 {[%clk 00:50:12]} {[%emt 00:02:04]} Bxa6
{[%clk 00:25:28]} {[%emt 00:01:57]} 21. Bxd8 {[%clk 00:50:16]} {[%emt
00:00:05]} Rbxd8 {[%clk 00:24:28]} {[%emt 00:01:10]} 22. Ne7+ {[%clk 00:47:32]}
{[%emt 00:02:55]} Kh7 {[%clk 00:21:32]} {[%emt 00:03:06]} 23. Bd5 {[%clk
00:46:56]} {[%emt 00:00:45]} Nb7 {[%clk 00:17:12]} {[%emt 00:04:30]} 24. b4
{[%clk 00:45:22]} {[%emt 00:01:44]} Rd7 {[%clk 00:15:28]} {[%emt 00:01:53]} 25.
Nf5 {[%clk 00:44:49]} {[%emt 00:00:43]} Rc8 {[%clk 00:15:36]} {[%emt 00:00:03]}
26. Qa1 {[%clk 00:41:55]} {[%emt 00:03:04]} Ra8 {[%clk 00:15:26]} {[%emt
00:00:19]} 27. c4 {[%clk 00:38:13]} {[%emt 00:03:52]} Rdd8 {[%clk 00:12:20]}
{[%emt 00:03:16]} 28. Rh3 {[%clk 00:37:40]} {[%emt 00:00:42]} 1-0

[Event "HSG Open 2022 A"]
[Site "Hilversum, Netherlands"]
[Date "2022.06.17"]
[Round "1.3"]
[White "Verkooyen, Frank"]
[Black "Gilmanov, Mansur"]
[Result "0-1"]
[TimeControl "1:50 + 0.10"]
[WhiteElo "2021"]
[BlackElo "2390"]

1. d4 {[%clk 01:47:30]} {[%emt 00:02:47]} d5 {[%clk 01:49:51]} {[%emt
00:00:32]} 2. c4 {[%clk 01:47:32]} {[%emt 00:00:08]} e6 {[%clk 01:49:27]}
{[%emt 00:00:33]} 3. Nc3 {[%clk 01:47:30]} {[%emt 00:00:11]} f5 {[%clk
01:49:31]} {[%emt 00:00:07]} 4. cxd5 {[%clk 01:45:22]} {[%emt 00:02:18]} exd5
{[%clk 01:49:36]} {[%emt 00:00:06]} 5. Bf4 {[%clk 01:45:09]} {[%emt 00:00:22]}
Nf6 {[%clk 01:48:41]} {[%emt 00:01:05]} 6. e3 {[%clk 01:45:05]} {[%emt
00:00:14]} Bd6 {[%clk 01:47:51]} {[%emt 00:01:00]} 7. Bxd6 {[%clk 01:43:11]}
{[%emt 00:02:04]} Qxd6 {[%clk 01:47:49]} {[%emt 00:00:13]} 8. Bd3 {[%clk
01:43:12]} {[%emt 00:00:08]} O-O {[%clk 01:47:11]} {[%emt 00:00:48]} 9. Nge2
{[%clk 01:42:29]} {[%emt 00:06:17]} c6 {[%clk 01:42:53]} 10. Qc2 {[%clk
01:41:21]} {[%emt 00:00:21]} Ne4 {[%clk 01:41:25]} {[%emt 00:01:37]} 11. O-O
{[%clk 01:39:43]} {[%emt 00:03:18]} Be6 {[%clk 01:35:38]} {[%emt 00:04:29]} 12.
Rad1 {[%clk 01:35:17]} {[%emt 00:04:36]} Nd7 {[%clk 01:33:43]} {[%emt
00:02:05]} 13. f3 {[%clk 01:29:10]} {[%emt 00:06:18]} Nxc3 {[%clk 01:33:03]}
{[%emt 00:00:49]} 14. bxc3 {[%clk 01:29:07]} {[%emt 00:00:13]} Rae8 {[%clk
01:32:39]} {[%emt 00:00:34]} 15. Ng3 {[%clk 01:25:44]} {[%emt 00:03:33]} g6
{[%clk 01:25:36]} {[%emt 00:07:15]} 16. e4 {[%clk 01:20:56]} {[%emt 00:04:57]}
fxe4 {[%clk 01:16:47]} {[%emt 00:08:59]} 17. fxe4 {[%clk 01:20:58]} {[%emt
00:00:08]} dxe4 {[%clk 01:16:22]} {[%emt 00:00:36]} 18. Nxe4 {[%clk 01:19:31]}
{[%emt 00:01:36]} Qd5 {[%clk 01:16:08]} {[%emt 00:00:24]} 19. Qb2 {[%clk
00:55:12]} {[%emt 00:24:29]} c5 {[%clk 00:53:03]} {[%emt 00:23:15]} 20. Nf2
{[%clk 00:42:16]} {[%emt 00:13:05]} cxd4 {[%clk 00:48:16]} {[%emt 00:04:57]} 21.
cxd4 {[%clk 00:40:46]} {[%emt 00:01:39]} Nf6 {[%clk 00:43:57]} {[%emt
00:04:30]} 22. Rd2 {[%clk 00:36:52]} {[%emt 00:04:04]} Qg5 {[%clk 00:37:49]}
{[%emt 00:06:18]} 23. Re2 {[%clk 00:28:30]} {[%emt 00:08:32]} Bd5 {[%clk
00:23:57]} {[%emt 00:14:02]} 24. Nh3 {[%clk 00:27:47]} {[%emt 00:00:54]} Rxe2
{[%clk 00:13:15]} {[%emt 00:10:51]} 25. Qxe2 {[%clk 00:27:46]} {[%emt
00:00:11]} Qh5 {[%clk 00:12:10]} {[%emt 00:01:14]} 26. Qe7 {[%clk 00:18:31]}
{[%emt 00:09:25]} Rf7 {[%clk 00:11:35]} {[%emt 00:00:46]} 27. Qd6 {[%clk
00:14:58]} {[%emt 00:03:43]} Qg4 {[%clk 00:06:35]} {[%emt 00:05:09]} 28. Nf4
{[%clk 00:11:17]} {[%emt 00:03:51]} Kg7 {[%clk 00:05:51]} {[%emt 00:00:55]} 29.
Be2 {[%clk 00:06:55]} {[%emt 00:04:31]} Qd7 {[%clk 00:05:09]} {[%emt 00:00:52]}
30. Qe5 {[%clk 00:05:04]} {[%emt 00:02:01]} Bxa2 {[%clk 00:04:28]} {[%emt
00:00:51]} 31. Nd3 {[%clk 00:02:21]} {[%emt 00:02:54]} Qe7 {[%clk 00:04:04]}
{[%emt 00:00:33]} 32. Nc5 {[%clk 00:01:50]} {[%emt 00:00:41]} b6 {[%clk
00:03:23]} {[%emt 00:00:52]} 33. Nd3 {[%clk 00:01:30]} {[%emt 00:00:30]} Qxe5
{[%clk 00:02:25]} {[%emt 00:01:07]} 34. dxe5 {[%clk 00:01:38]} {[%emt
00:00:01]} Ne8 {[%clk 00:01:47]} {[%emt 00:00:48]} 35. Rc1 {[%clk 00:01:23]}
{[%emt 00:00:26]} Rc7 {[%clk 00:01:38]} {[%emt 00:00:18]} 36. Ra1 {[%clk
00:01:20]} {[%emt 00:00:13]} Bc4 {[%clk 00:01:17]} {[%emt 00:00:31]} 37. Kf2
{[%clk 00:01:25]} {[%emt 00:00:06]} Kf7 {[%clk 00:01:15]} {[%emt 00:00:10]} 38.
Ke3 {[%clk 00:01:25]} {[%emt 00:00:11]} Re7 {[%clk 00:00:56]} {[%emt 00:00:30]}
39. Kd4 {[%clk 00:01:28]} {[%emt 00:00:07]} Be6 {[%clk 00:00:55]} {[%emt
00:00:10]} 40. Rf1+ {[%clk 00:01:34]} {[%emt 00:00:04]} Kg7 {[%clk 00:01:04]}
{[%emt 00:00:01]} 41. Nb4 {[%clk 00:01:27]} {[%emt 00:00:16]} Rd7+ {[%clk
00:01:10]} {[%emt 00:00:05]} 42. Ke3 {[%clk 00:01:30]} {[%emt 00:00:07]} Nc7
{[%clk 00:01:18]} {[%emt 00:00:02]} 43. Rf6 {[%clk 00:01:14]} {[%emt 00:00:25]}
a5 {[%clk 00:01:20]} {[%emt 00:00:08]} 44. Bb5 {[%clk 00:01:22]} {[%emt
00:00:02]} axb4 {[%clk 00:01:00]} {[%emt 00:00:30]} 45. Bxd7 {[%clk 00:01:11]}
{[%emt 00:00:21]} Bxd7 {[%clk 00:01:09]} {[%emt 00:00:02]} 46. Rd6 {[%clk
00:01:12]} {[%emt 00:00:10]} Bf5 {[%clk 00:00:56]} {[%emt 00:00:22]} 47. Kd2
{[%clk 00:01:14]} {[%emt 00:00:07]} b5 {[%clk 00:00:47]} {[%emt 00:00:20]} 48.
Rb6 {[%clk 00:01:12]} {[%emt 00:00:11]} b3 {[%clk 00:00:43]} {[%emt 00:00:14]}
49. Kc1 {[%clk 00:01:14]} {[%emt 00:00:08]} Ne6 {[%clk 00:00:42]} {[%emt
00:00:11]} 50. Rxb5 {[%clk 00:01:13]} {[%emt 00:00:11]} Bc2 {[%clk 00:00:38]}
{[%emt 00:00:14]} 51. Rb7+ {[%clk 00:01:02]} {[%emt 00:00:21]} Kh6 {[%clk
00:00:37]} {[%emt 00:00:12]} 52. Rb6 {[%clk 00:01:03]} {[%emt 00:00:07]} Nc5
{[%clk 00:00:40]} {[%emt 00:00:08]} 53. Kd2 {[%clk 00:00:53]} {[%emt 00:00:19]}
Kg5 {[%clk 00:00:42]} {[%emt 00:00:10]} 54. Rc6 {[%clk 00:00:32]} {[%emt
00:00:30]} Ne4+ {[%clk 00:00:39]} {[%emt 00:00:13]} 55. Kc1 {[%clk 00:00:31]}
{[%emt 00:00:11]} Kf5 {[%clk 00:00:46]} {[%emt 00:00:03]} 56. e6 {[%clk
00:00:35]} {[%emt 00:00:06]} Kf6 {[%clk 00:00:48]} {[%emt 00:00:09]} 57. g4
{[%clk 00:00:38]} {[%emt 00:00:07]} Ng5 {[%clk 00:00:46]} {[%emt 00:00:11]} 58.
h4 {[%clk 00:00:41]} {[%emt 00:00:07]} Nxe6 {[%clk 00:00:53]} {[%emt 00:00:04]}
59. g5+ {[%clk 00:00:49]} {[%emt 00:00:01]} Ke5 {[%clk 00:01:00]} {[%emt
00:00:02]} 60. Rb6 {[%clk 00:00:56]} {[%emt 00:00:04]} Nc5 {[%clk 00:01:02]}
{[%emt 00:00:08]} 61. Rb8 {[%clk 00:00:48]} {[%emt 00:00:18]} Kd4 {[%clk
00:00:58]} {[%emt 00:00:14]} 62. Kd2 {[%clk 00:00:53]} {[%emt 00:00:05]} Bf5
{[%clk 00:00:58]} {[%emt 00:00:11]} 63. Rb4+ {[%clk 00:00:58]} {[%emt
00:00:04]} Kd5 {[%clk 00:01:04]} {[%emt 00:00:04]} 64. Rb8 {[%clk 00:01:03]}
{[%emt 00:00:05]} Kc4 {[%clk 00:01:11]} {[%emt 00:00:03]} 65. Kc1 {[%clk
00:01:01]} {[%emt 00:00:11]} Kc3 {[%clk 00:01:13]} {[%emt 00:00:08]} 0-1

[Event "HSG Open 2022 A"]
[Site "Hilversum, Netherlands"]
[Date "2022.06.17"]
[Round "1.4"]
[White "Roebers, Eline"]
[Black "Gijsen, William"]
[Result "1-0"]
[TimeControl "1:50 + 0.10"]
[WhiteElo "2378"]
[BlackElo "2019"]

1. e4 {[%clk 01:50:18]} {[%emt 00:00:02]} c5 {[%clk 01:50:15]} {[%emt
00:00:04]} 2. Nf3 {[%clk 01:50:25]} {[%emt 00:00:03]} e6 {[%clk 01:50:21]}
{[%emt 00:00:05]} 3. d4 {[%clk 01:50:32]} {[%emt 00:00:02]} cxd4 {[%clk
01:50:26]} {[%emt 00:00:05]} 4. Nxd4 {[%clk 01:50:39]} {[%emt 00:00:04]} a6
{[%clk 01:50:25]} {[%emt 00:00:10]} 5. Bd3 {[%clk 01:50:46]} {[%emt 00:00:04]}
Bc5 {[%clk 01:50:28]} {[%emt 00:00:06]} 6. Nb3 {[%clk 01:50:51]} {[%emt
00:00:05]} Ba7 {[%clk 01:50:33]} {[%emt 00:00:05]} 7. O-O {[%clk 01:49:45]}
{[%emt 00:01:17]} d6 {[%clk 01:49:44]} {[%emt 00:00:58]} 8. Nc3 {[%clk
01:34:26]} {[%emt 00:15:51]} Nf6 {[%clk 01:42:59]} {[%emt 00:07:31]} 9. Qe2
{[%clk 01:33:45]} Qc7 {[%clk 01:39:10]} {[%emt 00:03:51]} 10. Kh1 {[%clk
01:31:58]} {[%emt 00:01:57]} Nbd7 {[%emt 00:03:35]} 11. f4 {[%clk 01:30:14]} b5
{[%clk 01:32:37]} {[%emt 00:05:12]} 12. a4 {[%clk 01:23:05]} {[%emt 00:07:19]}
b4 {[%clk 01:30:15]} {[%emt 00:02:32]} 13. Nd1 {[%clk 01:23:04]} {[%emt
00:00:11]} O-O {[%clk 01:28:50]} {[%emt 00:01:34]} 14. Bd2 {[%clk 01:20:41]}
{[%emt 00:02:33]} Rb8 {[%clk 01:22:21]} {[%emt 00:06:39]} 15. Nf2 {[%clk
01:09:15]} {[%emt 00:11:37]} e5 {[%clk 01:16:35]} {[%emt 00:05:55]} 16. Rac1
{[%clk 01:05:08]} {[%emt 00:04:18]} Qd8 {[%clk 01:05:33]} {[%emt 00:11:12]} 17.
fxe5 {[%clk 00:57:28]} {[%emt 00:07:50]} dxe5 {[%clk 00:57:01]} {[%emt
00:08:42]} 18. Bg5 {[%clk 00:56:31]} {[%emt 00:01:07]} h6 {[%clk 00:54:14]}
{[%emt 00:02:56]} 19. Bh4 {[%clk 00:54:52]} {[%emt 00:01:50]} Qb6 {[%clk
00:54:17]} {[%emt 00:00:07]} 20. Nd2 {[%clk 00:51:57]} {[%emt 00:03:05]} Qe3
{[%clk 00:50:04]} {[%emt 00:04:23]} 21. Qd1 {[%clk 00:49:54]} {[%emt 00:02:13]}
Qc5 {[%clk 00:45:47]} {[%emt 00:04:27]} 22. Bc4 {[%clk 00:47:04]} {[%emt
00:03:00]} Bb7 {[%clk 00:42:52]} {[%emt 00:03:05]} 23. Ng4 {[%clk 00:40:55]}
{[%emt 00:06:19]} Nxg4 {[%clk 00:36:21]} {[%emt 00:06:40]} 24. Qxg4 {[%clk
00:41:00]} {[%emt 00:00:05]} Qd6 {[%clk 00:33:06]} {[%emt 00:03:26]} 25. Rcd1
{[%clk 00:40:08]} {[%emt 00:01:02]} Nc5 {[%clk 00:31:49]} {[%emt 00:01:26]} 26.
Bf6 {[%clk 00:39:46]} {[%emt 00:00:33]} g5 {[%clk 00:31:07]} {[%emt 00:00:52]}
27. Qh5 {[%clk 00:39:41]} {[%emt 00:00:14]} Kh7 {[%clk 00:30:16]} {[%emt
00:01:01]} 28. Bxf7 {[%clk 00:39:45]} {[%emt 00:00:06]} 1-0

[Event "HSG Open 2022 A"]
[Site "Hilversum, Netherlands"]
[Date "2022.06.17"]
[Round "1.5"]
[White "Markus, John Raymond"]
[Black "Harff, Marcel"]
[Result "0-1"]
[TimeControl "1:50 + 0.10"]
[WhiteElo "2019"]
[BlackElo "2329"]

1. d4 {[%clk 01:50:16]} {[%emt 00:00:03]} Nf6 {[%clk 01:50:11]} {[%emt
00:00:09]} 2. Nf3 {[%clk 01:50:04]} {[%emt 00:00:23]} e6 {[%clk 01:50:10]}
{[%emt 00:00:10]} 3. Bg5 {[%clk 01:49:48]} {[%emt 00:00:26]} c5 {[%clk
01:49:59]} {[%emt 00:00:21]} 4. e3 {[%clk 01:49:30]} {[%emt 00:00:28]} Qb6
{[%clk 01:49:36]} {[%emt 00:00:32]} 5. Bxf6 {[%clk 01:49:12]} {[%emt 00:00:29]}
gxf6 {[%clk 01:49:33]} {[%emt 00:00:14]} 6. Nbd2 {[%clk 01:48:55]} {[%emt
00:00:27]} cxd4 {[%clk 01:47:56]} {[%emt 00:01:46]} 7. exd4 {[%clk 01:48:22]}
{[%emt 00:00:44]} Qxb2 {[%clk 01:46:58]} {[%emt 00:01:08]} 8. Bd3 {[%clk
01:45:47]} {[%emt 00:02:44]} Nc6 {[%clk 01:45:36]} {[%emt 00:01:32]} 9. O-O
{[%clk 01:37:57]} {[%emt 00:08:01]} Nb4 {[%clk 01:42:28]} {[%emt 00:04:37]} 10.
Rb1 {[%clk 01:31:12]} {[%emt 00:05:34]} Qa3 {[%clk 01:42:26]} {[%emt 00:00:12]}
11. Bc4 {[%clk 01:18:02]} {[%emt 00:13:21]} d5 {[%clk 01:39:08]} {[%emt
00:03:27]} 12. Bb5+ {[%clk 01:17:31]} {[%emt 00:00:41]} Kd8 {[%clk 01:39:04]}
{[%emt 00:00:14]} 13. c3 {[%clk 01:07:31]} {[%emt 00:10:11]} a6 {[%clk
01:38:14]} {[%emt 00:01:00]} 14. Be2 {[%clk 01:02:30]} {[%emt 00:05:12]} Qxc3
{[%clk 01:37:51]} {[%emt 00:00:33]} 15. Qa4 {[%clk 01:01:38]} {[%emt 00:01:02]}
Bd7 {[%clk 01:37:42]} {[%emt 00:00:19]} 16. Qa5+ {[%clk 01:00:24]} {[%emt
00:01:24]} Qc7 {[%clk 01:37:49]} {[%emt 00:00:02]} 17. Qa3 {[%clk 00:58:43]}
{[%emt 00:01:51]} Nc6 {[%clk 01:37:46]} {[%emt 00:00:13]} 18. Qb2 {[%clk
00:57:26]} {[%emt 00:01:28]} Rb8 {[%clk 01:35:47]} {[%emt 00:02:08]} 19. Nb3
{[%clk 00:55:16]} {[%emt 00:02:21]} Bd6 {[%clk 01:28:14]} {[%emt 00:07:42]} 20.
Rfc1 {[%clk 00:54:45]} {[%emt 00:00:41]} Ke7 {[%clk 01:27:59]} {[%emt
00:00:26]} 21. Nc5 {[%clk 00:52:51]} {[%emt 00:02:04]} Bxc5 {[%clk 01:27:38]}
{[%emt 00:00:30]} 22. Rxc5 {[%clk 00:52:32]} {[%emt 00:00:29]} Qd6 {[%clk
01:27:09]} {[%emt 00:00:39]} 23. Qb6 {[%clk 00:50:26]} {[%emt 00:02:17]} Rhc8
{[%clk 01:26:51]} {[%emt 00:00:28]} 24. Kf1 {[%clk 00:49:08]} {[%emt 00:01:28]}
Nd8 {[%clk 01:24:37]} {[%emt 00:02:24]} 25. Qxd6+ {[%clk 00:46:00]} {[%emt
00:03:18]} Kxd6 {[%clk 01:24:44]} {[%emt 00:00:03]} 26. Rb6+ {[%clk 00:45:24]}
{[%emt 00:00:46]} Rc6 {[%clk 01:24:46]} {[%emt 00:00:08]} 27. Rcxc6+ {[%clk
00:44:19]} {[%emt 00:01:15]} Nxc6 {[%clk 01:24:35]} {[%emt 00:00:21]} 28. Ke1
{[%clk 00:43:32]} {[%emt 00:00:58]} h6 {[%clk 01:23:47]} {[%emt 00:00:57]} 29.
Kd2 {[%clk 00:43:17]} {[%emt 00:00:25]} e5 {[%clk 01:23:51]} {[%emt 00:00:06]}
30. dxe5+ {[%clk 00:41:30]} {[%emt 00:01:57]} fxe5 {[%clk 01:23:53]} {[%emt
00:00:07]} 31. g3 {[%clk 00:39:24]} {[%emt 00:02:15]} Kc5 {[%clk 01:23:02]}
{[%emt 00:01:01]} 32. Rb1 {[%clk 00:38:42]} {[%emt 00:00:52]} b5 {[%clk
01:23:03]} {[%emt 00:00:09]} 33. a3 {[%clk 00:36:24]} {[%emt 00:02:29]} a5
{[%clk 01:22:28]} {[%emt 00:00:44]} 34. Rc1+ {[%clk 00:35:47]} {[%emt
00:00:47]} Kd6 {[%clk 01:22:33]} {[%emt 00:00:04]} 35. Rb1 {[%clk 00:34:29]}
{[%emt 00:01:28]} b4 {[%clk 01:22:34]} {[%emt 00:00:09]} 36. axb4 {[%clk
00:34:17]} {[%emt 00:00:23]} Rxb4 {[%clk 01:22:32]} {[%emt 00:00:12]} 37. Rxb4
{[%clk 00:32:29]} {[%emt 00:01:58]} axb4 {[%clk 01:22:31]} {[%emt 00:00:11]} 38.
Ne1 {[%clk 00:30:21]} {[%emt 00:02:18]} Nd4 {[%clk 01:20:15]} {[%emt 00:02:26]}
39. Bd1 {[%clk 00:30:12]} {[%emt 00:00:18]} Bb5 {[%clk 01:19:54]} {[%emt
00:00:31]} 40. f4 {[%clk 00:28:33]} {[%emt 00:01:50]} e4 {[%clk 01:19:42]}
{[%emt 00:00:22]} 41. g4 {[%clk 00:28:27]} {[%emt 00:00:16]} Ne6 {[%clk
01:17:31]} {[%emt 00:02:20]} 42. f5 {[%clk 00:25:52]} {[%emt 00:02:46]} Nd4
{[%clk 01:16:34]} {[%emt 00:01:07]} 43. Ng2 {[%clk 00:23:42]} {[%emt 00:02:19]}
Nf3+ {[%clk 01:16:10]} 0-1